{"text_format":"3","workbook":"xlsx","n_sheets":2,"sheets":["INICIO","PARTE DE HORAS ANUAL"],"not_rendered":{"defined_names":2},"read":"whole","date_system":"1900"}

{"sheet":"INICIO","index":0,"n_rows":8,"n_cols":2,"rows_kept":8}
[null,"ACERCA DE ESTA PLANTILLA"]
[null,"Realiza un seguimiento diario, semanal, mensual y anual de las horas en esta tarjeta de registro de empleado."]
[null,"Complétala con información básica como el nombre, el número de teléfono y la dirección de correo del empleado, y el nombre del superior. "]
[null,"Agrega las horas a la tabla de cada mes. Registra las horas normales y las horas extra en columnas independientes para cada día laborable de cada semana. "]
[null,"El total de horas trabajadas, las horas normales y las horas extra se calculan automáticamente. "]
[null,"Notas:"]
[null,"Se facilitan instrucciones adicionales en la columna A de la hoja de cálculo PARTE DE HORAS ANUAL. Este texto se ocultó a propósito. Para eliminar el texto, selecciona la columna A y, a continuación, ELIMINAR. Para mostrar el texto, selecciona la columna A y, a continuación, cambia el color de fuente. "]
[null,"Para obtener más información sobre las tablas, presiona las teclas MAYÚS y F10 dentro de una tabla, selecciona la opción TABLA y, a continuación, TEXTO ALTERNATIVO."]

{"sheet":"PARTE DE HORAS ANUAL","index":1,"n_rows":132,"n_cols":15,"rows_kept":132,"merged":[[0,1,0,2],[0,4,0,14],[10,6,10,7],[21,6,21,7],[32,6,32,7],[33,4,33,14],[43,6,43,7],[54,6,54,7],[65,6,65,7],[66,4,66,14],[76,6,76,7],[87,6,87,7],[98,6,98,7],[99,4,99,14],[109,6,109,7],[120,6,120,7],[131,6,131,7]]}
["Crea un parte de horas diario, semanal, mensual o anual para cada empleado en esta hoja de cálculo. \nEncontrarás instrucciones útiles sobre cómo usar este libro en las celdas de esta columna. Presiona la flecha abajo para empezar.\nEl título de esta hoja de cálculo se encuentra en la celda de la derecha. El encabezado del trimestre de enero, febrero y marzo se encuentra en la celda E1.","TARJETA DE REGISTRO \nDE EMPLEADO",null,null,"Enero, febrero, marzo      Tarjeta de registro de empleado: diario, semanal, mensual, anual"]
["Escribe el nombre del empleado en la celda C2, y las horas normales y extra, en la tabla de enero, empezando por la celda E2.","Nombre del empleado:",null,null,"Enero","Semana 1","Horas extra","Semana 2","Horas extra  ","Semana 3","Horas extra   ","Semana 4","Horas extra    ","Semana 5","Horas extra     "]
["Escribe el nombre del superior en la celda C3.","Superior:",null,null,"Lunes",{"v":8,"d":"8.0"}]
["Escribe la dirección de correo en la celda C4.","Correo:",null,null,"Martes",{"v":8,"d":"8.0"},{"v":2,"d":"2.0"}]
["Escribe el número de teléfono en la celda C5. La instrucción siguiente se encuentra en la celda A9.","Teléfono:",null,null,"Miércoles"]
[{"$nulls":4},"Jueves"]
[{"$nulls":4},"Viernes"]
[{"$nulls":4},"Sábado"]
["El total anual de horas normales se calcula de forma automática en la celda C9.","Horas normales:",{"$f":"Horas_normales","v":31},null,"Domingo"]
["El total anual de horas extra se calcula de forma automática en la celda C10.","Horas extra:",{"$f":"Horas_extra","v":4},null,"Total semanal de horas",{"$f":"SUM(F3:F9)","v":{"v":16,"d":"16.0"}},{"v":2,"d":"2.0"},{"v":0,"d":"0.0"},{"v":0,"d":"0.0"},{"v":0,"d":"0.0"},{"v":0,"d":"0.0"},{"v":0,"d":"0.0"},{"v":0,"d":"0.0"},{"v":0,"d":"0.0"},{"v":0,"d":"0.0"}]
["El total anual de horas trabajadas se calcula de forma automática en la celda C11. El total de horas normales y el total de horas extra de enero se calculan de forma automática en las celdas F11 e I11, respectivamente. La instrucción siguiente se encuentra en la celda A13.","Total",{"$f":"Horas_normales+Horas_extra","v":35},null,{"$f":"TEXT(DATEVALUE(Enero[[#Headers],[Enero]]&\"  \"&YEAR(TODAY())),\"mmm.\")&\" total: Horas_normales\"","v":"ene. total: Horas_normales"},{"$f":"SUM(Enero[Semana 1],Enero[Semana 2],Enero[Semana 3],Enero[Semana 4],Enero[Semana 5])","v":{"v":16,"d":"16.0"}},{"$f":"TEXT(DATEVALUE(Enero[[#Headers],[Enero]]&\"  \"&YEAR(TODAY())),\"mmm.\")&\" total: Horas extra\"","v":"ene. total: Horas extra"},null,{"$f":"SUM(Enero[Horas extra],Enero[[Horas extra  ]],Enero[[Horas extra   ]],Enero[[Horas extra    ]],Enero[[Horas extra     ]])","v":{"v":2,"d":"2.0"}}]
[]
["Escribe las horas normales y extra en la tabla de febrero, empezando por la celda E13. La instrucción siguiente se encuentra en la celda A22.",{"$nulls":3},"Febrero","Semana 1","Horas extra","Semana 2","Horas extra  ","Semana 3","Horas extra   ","Semana 4","Horas extra    ","Semana 5","Horas extra     "]
[{"$nulls":4},"Lunes",{"v":8,"d":"8.0"}]
[{"$nulls":4},"Martes",{"v":7,"d":"7.0"},{"v":2,"d":"2.0"}]
[{"$nulls":4},"Miércoles"]
[{"$nulls":4},"Jueves"]
[{"$nulls":4},"Viernes"]
[{"$nulls":4},"Sábado"]
[{"$nulls":4},"Domingo"]
[{"$nulls":4},"Total semanal de horas",{"$f":"SUM(F14:F20)","v":{"v":15,"d":"15.0"}},{"v":2,"d":"2.0"},{"v":0,"d":"0.0"},{"v":0,"d":"0.0"},{"v":0,"d":"0.0"},{"v":0,"d":"0.0"},{"v":0,"d":"0.0"},{"v":0,"d":"0.0"},{"v":0,"d":"0.0"},{"v":0,"d":"0.0"}]
["El total de horas normales y el total de horas extra de febrero se calculan de forma automática en las celdas F22 e I22, respectivamente. La instrucción siguiente se encuentra en la celda A24.",{"$nulls":3},{"$f":"TEXT(DATEVALUE(Febrero[[#Headers],[Febrero]]&\"  \"&YEAR(TODAY())),\"mmm.\")&\" total: Horas_normales\"","v":"feb. total: Horas_normales"},{"$f":"SUM(Febrero[Semana 1],Febrero[Semana 2],Febrero[Semana 3],Febrero[Semana 4],Febrero[Semana 5])","v":{"v":15,"d":"15.0"}},{"$f":"TEXT(DATEVALUE(Febrero[[#Headers],[Febrero]]&\" \"&YEAR(TODAY())),\"mmm.\")&\" total: Horas extra\"","v":"feb. total: Horas extra"},null,{"$f":"SUM(Febrero[Horas extra],Febrero[[Horas extra  ]],Febrero[[Horas extra   ]],Febrero[[Horas extra    ]],Febrero[[Horas extra     ]])","v":{"v":2,"d":"2.0"}}]
[]
["Escribe las horas normales y extra en la tabla de marzo, empezando por la celda E24. La instrucción siguiente se encuentra en la celda A33.",{"$nulls":3},"Marzo","Semana 1","Horas extra","Semana 2","Horas extra ","Semana 3","Horas extra  ","Semana 4","Horas extra    ","Semana 5","Horas extra     "]
[{"$nulls":4},"Lunes"]
[{"$nulls":4},"Martes"]
[{"$nulls":4},"Miércoles"]
[{"$nulls":4},"Jueves"]
[{"$nulls":4},"Viernes"]
[{"$nulls":4},"Sábado"]
[{"$nulls":4},"Domingo"]
[{"$nulls":4},"Total semanal de horas",{"$f":"SUM(F25:F31)","v":{"v":0,"d":"0.0"}},{"v":0,"d":"0.0"},{"v":0,"d":"0.0"},{"v":0,"d":"0.0"},{"v":0,"d":"0.0"},{"v":0,"d":"0.0"},{"v":0,"d":"0.0"},{"v":0,"d":"0.0"},{"v":0,"d":"0.0"},{"v":0,"d":"0.0"}]
["El total de horas normales y el total de horas extra de marzo se calculan de forma automática en las celdas F33 e I33, respectivamente.",{"$nulls":3},{"$f":"TEXT(DATEVALUE(Marzo[[#Headers],[Marzo]]&\" \"&YEAR(TODAY())),\"mmm.\")&\" total: Horas_normales\"","v":"mar. total: Horas_normales"},{"$f":"SUM(Marzo[Semana 1],Marzo[Semana 2],Marzo[Semana 3],Marzo[Semana 4],Marzo[Semana 5])","v":{"v":0,"d":"0.0"}},{"$f":"TEXT(DATEVALUE(Marzo[[#Headers],[Marzo]]&\" \"&YEAR(TODAY())),\"mmm.\")&\" total: Horas extra\"","v":"mar. total: Horas extra"},null,{"$f":"SUM(Marzo[Horas extra],Marzo[[Horas extra ]],Marzo[[Horas extra  ]],Marzo[[Horas extra    ]],Marzo[[Horas extra     ]])","v":{"v":0,"d":"0.0"}}]
["El encabezado del segundo trimestre (abril, mayo y junio) se encuentra en la celda E34. ",{"$nulls":3},"Abril, mayo, junio      Tarjeta de registro de empleado: diario, semanal, mensual, anual"]
["Escribe las horas normales y extra en la tabla de abril, empezando por la celda E35. La instrucción siguiente se encuentra en la celda A44.",{"$nulls":3},"Abril","Semana 1","Horas extra","Semana 2","Horas extra  ","Semana 3","Horas extra   ","Semana 4","Horas extra    ","Semana 5","Horas extra     "]
[{"$nulls":4},"Lunes"]
[{"$nulls":4},"Martes"]
[{"$nulls":4},"Miércoles"]
[{"$nulls":4},"Jueves"]
[{"$nulls":4},"Viernes"]
[{"$nulls":4},"Sábado"]
[{"$nulls":4},"Domingo"]
[{"$nulls":4},"Total semanal de horas",{"$f":"SUM(F36:F42)","v":{"v":0,"d":"0.0"}},{"v":0,"d":"0.0"},{"v":0,"d":"0.0"},{"v":0,"d":"0.0"},{"v":0,"d":"0.0"},{"v":0,"d":"0.0"},{"v":0,"d":"0.0"},{"v":0,"d":"0.0"},{"v":0,"d":"0.0"},{"v":0,"d":"0.0"}]
["El total de horas normales y el total de horas extra de abril se calculan de forma automática en las celdas F44 e I44, respectivamente. La instrucción siguiente se encuentra en la celda A46.",{"$nulls":3},{"$f":"TEXT(DATEVALUE(Abril[[#Headers],[Abril]]&\" \"&YEAR(TODAY())),\"mmm.\")&\" total: Horas_normales\"","v":"abr. total: Horas_normales"},{"$f":"SUM(Abril[Semana 1],Abril[Semana 2],Abril[Semana 3],Abril[Semana 4],Abril[Semana 5])","v":{"v":0,"d":"0.0"}},{"$f":"TEXT(DATEVALUE(Abril[[#Headers],[Abril]]&\" \"&YEAR(TODAY())),\"mmm.\")&\" total: Horas extra\"","v":"abr. total: Horas extra"},null,{"$f":"SUM(Abril[Horas extra],Abril[[Horas extra  ]],Abril[[Horas extra   ]],Abril[[Horas extra    ]],Abril[[Horas extra     ]])","v":{"v":0,"d":"0.0"}}]
[]
["Escribe las horas normales y extra en la tabla de may, empezando por la celda E46. La instrucción siguiente se encuentra en la celda A55.",{"$nulls":3},"May","Semana 1","Horas extra","Semana 2","Horas extra  ","Semana 3","Horas extra   ","Semana 4","Horas extra    ","Semana 5","Horas extra     "]
[{"$nulls":4},"Lunes"]
[{"$nulls":4},"Martes"]
[{"$nulls":4},"Miércoles"]
[{"$nulls":4},"Jueves"]
[{"$nulls":4},"Viernes"]
[{"$nulls":4},"Sábado"]
[{"$nulls":4},"Domingo"]
[{"$nulls":4},"Total semanal de horas",{"$f":"SUM(F47:F53)","v":{"v":0,"d":"0.0"}},{"v":0,"d":"0.0"},{"v":0,"d":"0.0"},{"v":0,"d":"0.0"},{"v":0,"d":"0.0"},{"v":0,"d":"0.0"},{"v":0,"d":"0.0"},{"v":0,"d":"0.0"},{"v":0,"d":"0.0"},{"v":0,"d":"0.0"}]
["El total de horas normales y el total de horas extra de mayo se calculan de forma automática en las celdas F55 e I55, respectivamente. La instrucción siguiente se encuentra en la celda A57.",{"$nulls":3},{"$f":"TEXT(DATEVALUE(May[[#Headers],[May]]&\" \"&YEAR(TODAY())),\"mmm.\")&\" total: Horas_normales\"","v":"may. total: Horas_normales"},{"$f":"SUM(May[Semana 1],May[Semana 2],May[Semana 3],May[Semana 4],May[Semana 5])","v":{"v":0,"d":"0.0"}},{"$f":"TEXT(DATEVALUE(May[[#Headers],[May]]&\" \"&YEAR(TODAY())),\"mmm.\")&\" total: Horas extra\"","v":"may. total: Horas extra"},null,{"$f":"SUM(May[Horas extra],May[[Horas extra  ]],May[[Horas extra   ]],May[[Horas extra    ]],May[[Horas extra     ]])","v":{"v":0,"d":"0.0"}}]
[]
["Escribe las horas normales y extra en la tabla de junio, empezando por la celda E57. La instrucción siguiente se encuentra en la celda A66.",{"$nulls":3},"Junio","Semana 1","Horas extra","Semana 2","Horas extra  ","Semana 3","Horas extra   ","Semana 4","Horas extra    ","Semana 5","Horas extra     "]
[{"$nulls":4},"Lunes"]
[{"$nulls":4},"Martes"]
[{"$nulls":4},"Miércoles"]
[{"$nulls":4},"Jueves"]
[{"$nulls":4},"Viernes"]
[{"$nulls":4},"Sábado"]
[{"$nulls":4},"Domingo"]
[{"$nulls":4},"Total semanal de horas",{"$f":"SUM(F58:F64)","v":{"v":0,"d":"0.0"}},{"v":0,"d":"0.0"},{"v":0,"d":"0.0"},{"v":0,"d":"0.0"},{"v":0,"d":"0.0"},{"v":0,"d":"0.0"},{"v":0,"d":"0.0"},{"v":0,"d":"0.0"},{"v":0,"d":"0.0"},{"v":0,"d":"0.0"}]
["El total de horas normales y el total de horas extra de junio se calculan de forma automática en las celdas F66 e I66, respectivamente.",{"$nulls":3},{"$f":"TEXT(DATEVALUE(Junio[[#Headers],[Junio]]&\" \"&YEAR(TODAY())),\"mmm.\")&\" total: Horas_normales\"","v":"jun. total: Horas_normales"},{"$f":"SUM(Junio[Semana 1],Junio[Semana 2],Junio[Semana 3],Junio[Semana 4],Junio[Semana 5])","v":{"v":0,"d":"0.0"}},{"$f":"TEXT(DATEVALUE(Junio[[#Headers],[Junio]]&\" \"&YEAR(TODAY())),\"mmm.\")&\" total: Horas extra\"","v":"jun. total: Horas extra"},null,{"$f":"SUM(Junio[Horas extra],Junio[[Horas extra  ]],Junio[[Horas extra   ]],Junio[[Horas extra    ]],Junio[[Horas extra     ]])","v":{"v":0,"d":"0.0"}}]
["El encabezado del tercer trimestre (julio, agosto y septiembre) se encuentra en la celda E67. ",{"$nulls":3},"Julio, agosto, septiembre      Tarjeta de registro de empleado: diario, semanal, mensual, anual"]
["Escribe las horas normales y extra en la tabla de julio, empezando por la celda E68. La instrucción siguiente se encuentra en la celda A77.",{"$nulls":3},"Julio","Semana 1","Horas extra","Semana 2","Horas extra ","Semana 3","Horas extra  ","Semana 4","Horas extra   ","Semana 5","Horas extra     "]
[{"$nulls":4},"Lunes"]
[{"$nulls":4},"Martes"]
[{"$nulls":4},"Miércoles"]
[{"$nulls":4},"Jueves"]
[{"$nulls":4},"Viernes"]
[{"$nulls":4},"Sábado"]
[{"$nulls":4},"Domingo"]
[{"$nulls":4},"Total semanal de horas",{"$f":"SUM(F69:F75)","v":{"v":0,"d":"0.0"}},{"v":0,"d":"0.0"},{"v":0,"d":"0.0"},{"v":0,"d":"0.0"},{"v":0,"d":"0.0"},{"v":0,"d":"0.0"},{"v":0,"d":"0.0"},{"v":0,"d":"0.0"},{"v":0,"d":"0.0"},{"v":0,"d":"0.0"}]
["El total de horas normales y el total de horas extra de julio se calculan de forma automática en las celdas F77 e I77, respectivamente. La instrucción siguiente se encuentra en la celda A79.",{"$nulls":3},{"$f":"TEXT(DATEVALUE(Julio[[#Headers],[Julio]]&\" \"&YEAR(TODAY())),\"mmm.\")&\" total: Horas_normales\"","v":"jul. total: Horas_normales"},{"$f":"SUM(Julio[Semana 1],Julio[Semana 2],Julio[Semana 3],Julio[Semana 4],Julio[Semana 5])","v":{"v":0,"d":"0.0"}},{"$f":"TEXT(DATEVALUE(Julio[[#Headers],[Julio]]&\" \"&YEAR(TODAY())),\"mmm.\")&\" total: Horas extra\"","v":"jul. total: Horas extra"},null,{"$f":"SUM(Julio[Horas extra],Julio[[Horas extra ]],Julio[[Horas extra  ]],Julio[[Horas extra   ]],Julio[[Horas extra     ]])","v":{"v":0,"d":"0.0"}}]
[]
["Escribe las horas normales y extra en la tabla de agosto, empezando por la celda E79. La instrucción siguiente se encuentra en la celda A88.",{"$nulls":3},"Agosto","Semana 1","Horas extra","Semana 2","Horas extra ","Semana 3","Horas extra   ","Semana 4","Horas extra  ","Semana 5","Horas extra    "]
[{"$nulls":4},"Lunes"]
[{"$nulls":4},"Martes"]
[{"$nulls":4},"Miércoles"]
[{"$nulls":4},"Jueves"]
[{"$nulls":4},"Viernes"]
[{"$nulls":4},"Sábado"]
[{"$nulls":4},"Domingo"]
[{"$nulls":4},"Total semanal de horas",{"$f":"SUBTOTAL(109,Agosto[Semana 1])","v":{"v":0,"d":"0.0"}},{"$f":"SUBTOTAL(109,Agosto[Horas extra])","v":{"v":0,"d":"0.0"}},{"$f":"SUBTOTAL(109,Agosto[Semana 2])","v":{"v":0,"d":"0.0"}},{"$f":"SUBTOTAL(109,Agosto[[Horas extra ]])","v":{"v":0,"d":"0.0"}},{"$f":"SUBTOTAL(109,Agosto[Semana 3])","v":{"v":0,"d":"0.0"}},{"$f":"SUBTOTAL(109,Agosto[[Horas extra   ]])","v":{"v":0,"d":"0.0"}},{"$f":"SUBTOTAL(109,Agosto[Semana 4])","v":{"v":0,"d":"0.0"}},{"$f":"SUBTOTAL(109,Agosto[[Horas extra  ]])","v":{"v":0,"d":"0.0"}},{"$f":"SUBTOTAL(109,Agosto[Semana 5])","v":{"v":0,"d":"0.0"}},{"$f":"SUBTOTAL(109,Agosto[[Horas extra    ]])","v":{"v":0,"d":"0.0"}}]
["El total de horas normales y el total de horas extra de agosto se calculan de forma automática en las celdas F88 e I88, respectivamente. La instrucción siguiente se encuentra en la celda A90.",{"$nulls":3},{"$f":"TEXT(DATEVALUE(Agosto[[#Headers],[Agosto]]&\" \"&YEAR(TODAY())),\"mmm.\")&\" total: Horas_normales\"","v":"ago. total: Horas_normales"},{"$f":"SUM(Agosto[Semana 1],Agosto[Semana 2],Agosto[Semana 3],Agosto[Semana 4],Agosto[Semana 5])","v":{"v":0,"d":"0.0"}},{"$f":"TEXT(DATEVALUE(Agosto[[#Headers],[Agosto]]&\" \"&YEAR(TODAY())),\"mmm.\")&\" total: Horas extra\"","v":"ago. total: Horas extra"},null,{"$f":"SUM(Agosto[Horas extra],Agosto[[Horas extra ]],Agosto[[Horas extra   ]],Agosto[[Horas extra  ]],Agosto[[Horas extra    ]])","v":{"v":0,"d":"0.0"}}]
[]
["Escribe las horas normales y extra en la tabla de septiembre, empezando por la celda E90. La instrucción siguiente se encuentra en la celda A99.",{"$nulls":3},"Septiembre","Semana 1","Horas extra","Semana 2","Horas extra ","Semana 3","Horas extra  ","Semana 4","Horas extra   ","Semana 5","Horas extra    "]
[{"$nulls":4},"Lunes"]
[{"$nulls":4},"Martes"]
[{"$nulls":4},"Miércoles"]
[{"$nulls":4},"Jueves"]
[{"$nulls":4},"Viernes"]
[{"$nulls":4},"Sábado"]
[{"$nulls":4},"Domingo"]
[{"$nulls":4},"Total semanal de horas",{"$f":"SUBTOTAL(109,Septiembre[Semana 1])","v":{"v":0,"d":"0.0"}},{"$f":"SUBTOTAL(109,Septiembre[Horas extra])","v":{"v":0,"d":"0.0"}},{"$f":"SUBTOTAL(109,Septiembre[Semana 2])","v":{"v":0,"d":"0.0"}},{"$f":"SUBTOTAL(109,Septiembre[[Horas extra ]])","v":{"v":0,"d":"0.0"}},{"$f":"SUBTOTAL(109,Septiembre[Semana 3])","v":{"v":0,"d":"0.0"}},{"$f":"SUBTOTAL(109,Septiembre[[Horas extra  ]])","v":{"v":0,"d":"0.0"}},{"$f":"SUBTOTAL(109,Septiembre[Semana 4])","v":{"v":0,"d":"0.0"}},{"$f":"SUBTOTAL(109,Septiembre[[Horas extra   ]])","v":{"v":0,"d":"0.0"}},{"$f":"SUBTOTAL(109,Septiembre[Semana 5])","v":{"v":0,"d":"0.0"}},{"$f":"SUBTOTAL(109,Septiembre[[Horas extra    ]])","v":{"v":0,"d":"0.0"}}]
["El total de horas normales y el total de horas extra de septiembre se calculan de forma automática en las celdas F99 e I99, respectivamente.",{"$nulls":3},{"$f":"TEXT(DATEVALUE(Septiembre[[#Headers],[Septiembre]]&\" \"&YEAR(TODAY())),\"mmm.\")&\" total: Horas_normales\"","v":"sep. total: Horas_normales"},{"$f":"SUM(Septiembre[Semana 1],Septiembre[Semana 2],Septiembre[Semana 3],Septiembre[Semana 4],Septiembre[Semana 5])","v":{"v":0,"d":"0.0"}},{"$f":"TEXT(DATEVALUE(Septiembre[[#Headers],[Septiembre]]&\" \"&YEAR(TODAY())),\"mmm.\")&\" total: Horas extra\"","v":"sep. total: Horas extra"},null,{"$f":"SUM(Septiembre[Horas extra],Septiembre[[Horas extra ]],Septiembre[[Horas extra  ]],Septiembre[[Horas extra   ]],Septiembre[[Horas extra    ]])","v":{"v":0,"d":"0.0"}}]
["El encabezado del cuatro trimestre (octubre, noviembre y diciembre) se encuentra en la celda E100. ",{"$nulls":3},"Octubre, noviembre, diciembre      Tarjeta de registro de empleado: diario, semanal, mensual, anual"]
["Escribe las horas normales y extra en la tabla de octubre, empezando por la celda E101. La instrucción siguiente se encuentra en la celda A110.",{"$nulls":3},"Octubre","Semana 1","Horas extra","Semana 2","Horas extra ","Semana 3","Horas extra  ","Semana 4","Horas extra   ","Semana 5","Horas extra    "]
[{"$nulls":4},"Lunes"]
[{"$nulls":4},"Martes"]
[{"$nulls":4},"Miércoles"]
[{"$nulls":4},"Jueves"]
[{"$nulls":4},"Viernes"]
[{"$nulls":4},"Sábado"]
[{"$nulls":4},"Domingo"]
[{"$nulls":4},"Total semanal de horas",{"$f":"SUBTOTAL(109,Octubre[Semana 1])","v":{"v":0,"d":"0.0"}},{"$f":"SUBTOTAL(109,Octubre[Horas extra])","v":{"v":0,"d":"0.0"}},{"$f":"SUBTOTAL(109,Octubre[Semana 2])","v":{"v":0,"d":"0.0"}},{"$f":"SUBTOTAL(109,Octubre[[Horas extra ]])","v":{"v":0,"d":"0.0"}},{"$f":"SUBTOTAL(109,Octubre[Semana 3])","v":{"v":0,"d":"0.0"}},{"$f":"SUBTOTAL(109,Octubre[[Horas extra  ]])","v":{"v":0,"d":"0.0"}},{"$f":"SUBTOTAL(109,Octubre[Semana 4])","v":{"v":0,"d":"0.0"}},{"$f":"SUBTOTAL(109,Octubre[[Horas extra   ]])","v":{"v":0,"d":"0.0"}},{"$f":"SUBTOTAL(109,Octubre[Semana 5])","v":{"v":0,"d":"0.0"}},{"$f":"SUBTOTAL(109,Octubre[[Horas extra    ]])","v":{"v":0,"d":"0.0"}}]
["El total de horas normales y el total de horas extra de octubre se calculan de forma automática en las celdas F110 e I110, respectivamente. La instrucción siguiente se encuentra en la celda A112.",{"$nulls":3},{"$f":"TEXT(DATEVALUE(Octubre[[#Headers],[Octubre]]&\" \"&YEAR(TODAY())),\"mmm.\")&\" total: Horas_normales\"","v":"oct. total: Horas_normales"},{"$f":"SUM(Octubre[Semana 1],Octubre[Semana 2],Octubre[Semana 3],Octubre[Semana 4],Octubre[Semana 5])","v":{"v":0,"d":"0.0"}},{"$f":"TEXT(DATEVALUE(Octubre[[#Headers],[Octubre]]&\" \"&YEAR(TODAY())),\"mmm.\")&\" total: Horas extra\"","v":"oct. total: Horas extra"},null,{"$f":"SUM(Octubre[Horas extra],Octubre[[Horas extra ]],Octubre[[Horas extra  ]],Octubre[[Horas extra   ]],Octubre[[Horas extra    ]])","v":{"v":0,"d":"0.0"}}]
[]
["Escribe las horas normales y extra en la tabla de noviembre, empezando por la celda E112. La instrucción siguiente se encuentra en la celda A121.",{"$nulls":3},"Noviembre","Semana 1","Horas extra","Semana 2","Horas extra ","Semana 3","Horas extra  ","Semana 4","Horas extra    ","Semana 5","Horas extra     "]
[{"$nulls":4},"Lunes"]
[{"$nulls":4},"Martes"]
[{"$nulls":4},"Miércoles"]
[{"$nulls":4},"Jueves"]
[{"$nulls":4},"Viernes"]
[{"$nulls":4},"Sábado"]
[{"$nulls":4},"Domingo"]
[{"$nulls":4},"Total semanal de horas",{"$f":"SUBTOTAL(109,Noviembre[Semana 1])","v":{"v":0,"d":"0.0"}},{"$f":"SUBTOTAL(109,Noviembre[Horas extra])","v":{"v":0,"d":"0.0"}},{"$f":"SUBTOTAL(109,Noviembre[Semana 2])","v":{"v":0,"d":"0.0"}},{"$f":"SUBTOTAL(109,Noviembre[[Horas extra ]])","v":{"v":0,"d":"0.0"}},{"$f":"SUBTOTAL(109,Noviembre[Semana 3])","v":{"v":0,"d":"0.0"}},{"$f":"SUBTOTAL(109,Noviembre[[Horas extra  ]])","v":{"v":0,"d":"0.0"}},{"$f":"SUBTOTAL(109,Noviembre[Semana 4])","v":{"v":0,"d":"0.0"}},{"$f":"SUBTOTAL(109,Noviembre[[Horas extra    ]])","v":{"v":0,"d":"0.0"}},{"$f":"SUBTOTAL(109,Noviembre[Semana 5])","v":{"v":0,"d":"0.0"}},{"$f":"SUBTOTAL(109,Noviembre[[Horas extra     ]])","v":{"v":0,"d":"0.0"}}]
["El total de horas normales y el total de horas extra de noviembre se calculan de forma automática en las celdas F121 e I121, respectivamente. La instrucción siguiente se encuentra en la celda A123.",{"$nulls":3},{"$f":"TEXT(DATEVALUE(Noviembre[[#Headers],[Noviembre]]&\" \"&YEAR(TODAY())),\"mmm.\")&\" total: Horas_normales\"","v":"nov. total: Horas_normales"},{"$f":"SUM(Noviembre[Semana 1],Noviembre[Semana 2],Noviembre[Semana 3],Noviembre[Semana 4],Noviembre[Semana 5])","v":{"v":0,"d":"0.0"}},{"$f":"TEXT(DATEVALUE(Noviembre[[#Headers],[Noviembre]]&\" \"&YEAR(TODAY())),\"mmm.\")&\" total: Horas extra\"","v":"nov. total: Horas extra"},null,{"$f":"SUM(Noviembre[Horas extra],Noviembre[[Horas extra ]],Noviembre[[Horas extra  ]],Noviembre[[Horas extra    ]],Noviembre[[Horas extra     ]])","v":{"v":0,"d":"0.0"}}]
[]
["Escribe las horas normales y extra en la tabla de diciembre, empezando por la celda E123. La instrucción siguiente se encuentra en la celda A132.",{"$nulls":3},"Diciembre","Semana 1","Horas extra","Semana 2","Horas extra ","Semana 3","Horas extra  ","Semana 4","Horas extra   ","Semana 5","Horas extra    "]
[{"$nulls":4},"Lunes"]
[{"$nulls":4},"Martes"]
[{"$nulls":4},"Miércoles"]
[{"$nulls":4},"Jueves"]
[{"$nulls":4},"Viernes"]
[{"$nulls":4},"Sábado"]
[{"$nulls":4},"Domingo"]
[{"$nulls":4},"Total semanal de horas",{"$f":"SUBTOTAL(109,Diciembre[Semana 1])","v":{"v":0,"d":"0.0"}},{"$f":"SUBTOTAL(109,Diciembre[Horas extra])","v":{"v":0,"d":"0.0"}},{"$f":"SUBTOTAL(109,Diciembre[Semana 2])","v":{"v":0,"d":"0.0"}},{"$f":"SUBTOTAL(109,Diciembre[[Horas extra ]])","v":{"v":0,"d":"0.0"}},{"$f":"SUBTOTAL(109,Diciembre[Semana 3])","v":{"v":0,"d":"0.0"}},{"$f":"SUBTOTAL(109,Diciembre[[Horas extra  ]])","v":{"v":0,"d":"0.0"}},{"$f":"SUBTOTAL(109,Diciembre[Semana 4])","v":{"v":0,"d":"0.0"}},{"$f":"SUBTOTAL(109,Diciembre[[Horas extra   ]])","v":{"v":0,"d":"0.0"}},{"$f":"SUBTOTAL(109,Diciembre[Semana 5])","v":{"v":0,"d":"0.0"}},{"$f":"SUBTOTAL(109,Diciembre[[Horas extra    ]])","v":{"v":0,"d":"0.0"}}]
["El total de horas normales y el total de horas extra de diciembre se calculan de forma automática en las celdas F132 e I132, respectivamente.",{"$nulls":3},{"$f":"TEXT(DATEVALUE(Diciembre[[#Headers],[Diciembre]]&\" \"&YEAR(TODAY())),\"mmm.\")&\" total: Horas_normales\"","v":"dic. total: Horas_normales"},{"$f":"SUM(Diciembre[Semana 1],Diciembre[Semana 2],Diciembre[Semana 3],Diciembre[Semana 4],Diciembre[Semana 5])","v":{"v":0,"d":"0.0"}},{"$f":"TEXT(DATEVALUE(Diciembre[[#Headers],[Diciembre]]&\" \"&YEAR(TODAY())),\"mmm.\")&\" total: Horas extra\"","v":"dic. total: Horas extra"},null,{"$f":"SUM(G124:G130,I124:I130,K124:K130,M124:M130,O124:O130)","v":{"v":0,"d":"0.0"}}]